[Event "*** Titled Tuesday Blitz"]
[Site "Chess.com"]
[Date "2020.04.21"]
[Round "7"]
[White "Shoytan"]
[Black "Schachmalanders"]
[Result "0-1"]
[WhiteElo "2518"]
[BlackElo "2355"]
[TimeControl "180+1"]
[EndTime "11:23:38 PDT"]
[Termination "Schachmalanders won on time"]

1. e4 {[%clk 0:03:00.8]} 1... c5 {[%clk 0:02:59.4]} 2. Nf3 {[%clk 0:03:00]} 2...
d6 {[%clk 0:02:59.9]} 3. d4 {[%clk 0:02:59.7]} 3... cxd4 {[%clk 0:03:00.8]} 4.
Nxd4 {[%clk 0:02:59.6]} 4... Nf6 {[%clk 0:03:01.2]} 5. Nc3 {[%clk 0:02:59.7]}
5... a6 {[%clk 0:03:01.7]} 6. Be2 {[%clk 0:02:59.7]} 6... e5 {[%clk 0:03:01.4]}
7. Nf3 {[%clk 0:02:59.9]} 7... Be6 {[%clk 0:03:01.3]} 8. Ng5 {[%clk 0:02:58.2]}
8... Bc8 {[%clk 0:03:01]} 9. Bc4 {[%clk 0:02:57.7]} 9... d5 {[%clk 0:02:58]} 10.
Nxd5 {[%clk 0:02:54.6]} 10... Be6 {[%clk 0:02:52.6]} 11. Nxe6 {[%clk 0:02:46]}
11... fxe6 {[%clk 0:02:51.6]} 12. Nxf6+ {[%clk 0:02:45.1]} 12... Qxf6 {[%clk
0:02:51.7]} 13. O-O {[%clk 0:02:39.9]} 13... Nc6 {[%clk 0:02:51.2]} 14. Be3
{[%clk 0:02:33.7]} 14... Be7 {[%clk 0:02:48.3]} 15. Qg4 {[%clk 0:02:32.2]} 15...
Nd8 {[%clk 0:02:35]} 16. f4 {[%clk 0:02:25.5]} 16... exf4 {[%clk 0:02:32.9]} 17.
Rxf4 {[%clk 0:02:18.3]} 17... Qg6 {[%clk 0:02:32.1]} 18. Qxg6+ {[%clk
0:02:10.8]} 18... hxg6 {[%clk 0:02:33]} 19. Rd1 {[%clk 0:02:03.8]} 19... Rc8
{[%clk 0:02:29.7]} 20. Bb3 {[%clk 0:02:02.8]} 20... Bf6 {[%clk 0:02:19.4]} 21.
Rg4 {[%clk 0:01:46.4]} 21... Kf7 {[%clk 0:02:12.7]} 22. c3 {[%clk 0:01:27.5]}
22... Rc7 {[%clk 0:02:03.8]} 23. Rf1 {[%clk 0:01:23.5]} 23... Nc6 {[%clk
0:01:59.1]} 24. Bf4 {[%clk 0:01:15.1]} 24... Rd7 {[%clk 0:01:50.7]} 25. e5
{[%clk 0:01:13.9]} 25... Be7 {[%clk 0:01:47.4]} 26. Be3+ {[%clk 0:01:07.6]}
26... Ke8 {[%clk 0:01:44.9]} 27. Rxg6 {[%clk 0:01:04.6]} 27... Rd3 {[%clk
0:01:37.6]} 28. Bb6 {[%clk 0:00:54.3]} 28... Nxe5 {[%clk 0:01:14.4]} 29. Rxe6
{[%clk 0:00:47.8]} 29... Nc6 {[%clk 0:01:14.4]} 30. Ba4 {[%clk 0:00:43.7]} 30...
Kd7 {[%clk 0:01:11.1]} 31. Re2 {[%clk 0:00:41.8]} 31... Bf6 {[%clk 0:01:08.7]}
32. Bc2 {[%clk 0:00:37.7]} 32... Rd5 {[%clk 0:01:06]} 33. Bf5+ {[%clk
0:00:34.8]} 33... Kd6 {[%clk 0:01:04.3]} 34. Re6+ {[%clk 0:00:33.2]} 34... Kd7
{[%clk 0:01:04.3]} 35. Rxf6+ {[%clk 0:00:32.2]} 35... Rxf5 {[%clk 0:01:04.3]}
36. R6xf5 {[%clk 0:00:31.2]} 36... Re8 {[%clk 0:01:04.2]} 37. Rd5+ {[%clk
0:00:29.9]} 37... Ke6 {[%clk 0:01:03.9]} 38. Rd2 {[%clk 0:00:28.1]} 38... Rh8
{[%clk 0:01:02.3]} 39. Re2+ {[%clk 0:00:24.1]} 39... Kd7 {[%clk 0:01:01.8]} 40.
Rf7+ {[%clk 0:00:22.7]} 40... Kc8 {[%clk 0:01:02.1]} 41. Rxg7 {[%clk 0:00:21.1]}
41... Rf8 {[%clk 0:01:01.8]} 42. Rc7+ {[%clk 0:00:18.4]} 42... Kb8 {[%clk
0:01:01.2]} 43. Rf7 {[%clk 0:00:17.6]} 43... Rg8 {[%clk 0:00:57.7]} 44. Ref2
{[%clk 0:00:17.7]} 44... Kc8 {[%clk 0:00:56.8]} 45. Rf8+ {[%clk 0:00:17.9]}
45... Rxf8 {[%clk 0:00:57.5]} 46. Rxf8+ {[%clk 0:00:17.9]} 46... Kd7 {[%clk
0:00:58.4]} 47. Rf7+ {[%clk 0:00:17.2]} 47... Ke6 {[%clk 0:00:58.9]} 48. Rxb7
{[%clk 0:00:16.3]} 48... Kd5 {[%clk 0:00:59.8]} 49. Bf2 {[%clk 0:00:15]} 49...
Kc4 {[%clk 0:00:59.4]} 50. Rb6 {[%clk 0:00:14.7]} 50... Ne5 {[%clk 0:00:57.4]}
51. Rb4+ {[%clk 0:00:14.1]} 51... Kd3 {[%clk 0:00:56.9]} 52. Kf1 {[%clk
0:00:13.7]} 52... Kc2 {[%clk 0:00:57]} 53. Rd4 {[%clk 0:00:11.9]} 53... Nc6
{[%clk 0:00:56.2]} 54. a4 {[%clk 0:00:10]} 54... Kb3 {[%clk 0:00:55.1]} 55. Ke2
{[%clk 0:00:09.5]} 55... Kc2 {[%clk 0:00:53.8]} 56. h4 {[%clk 0:00:09]} 56...
Ne7 {[%clk 0:00:53.4]} 57. h5 {[%clk 0:00:08.5]} 57... Nf5 {[%clk 0:00:53.9]}
58. g4 {[%clk 0:00:07.7]} 58... Nh6 {[%clk 0:00:53]} 59. g5 {[%clk 0:00:08]}
59... Nf5 {[%clk 0:00:52.7]} 60. h6 {[%clk 0:00:08.9]} 60... Kb3 {[%clk
0:00:53]} 61. h7 {[%clk 0:00:07.6]} 61... Kc2 {[%clk 0:00:53.9]} 62. h8=Q {[%clk
0:00:06.1]} 62... Kb3 {[%clk 0:00:54.8]} 63. Qb8+ {[%clk 0:00:03.9]} 63... Ka2
{[%clk 0:00:54.6]} 64. Qe5 {[%clk 0:00:04.8]} 64... Nxd4+ {[%clk 0:00:54.5]} 65.
Qxd4 {[%clk 0:00:04.2]} 65... Kb3 {[%clk 0:00:55.4]} 66. Qd5+ {[%clk 0:00:02.5]}
66... Kc2 {[%clk 0:00:55.4]} 67. Qd1+ {[%clk 0:00:01.2]} 67... Kxb2 {[%clk
0:00:54.9]} 68. Bd4 {[%clk 0:00:01.7]} 68... Ka3 {[%clk 0:00:55.8]} 0-1

[Event "*** Titled Tuesday Blitz"]
[Site "Chess.com"]
[Date "2020.04.21"]
[Round "7"]
[White "JoachimMouhamad"]
[Black "DinaBelenkaya"]
[Result "0-1"]
[WhiteElo "2354"]
[BlackElo "2232"]
[TimeControl "180+1"]
[EndTime "11:23:42 PDT"]
[Termination "DinaBelenkaya won by checkmate"]

1. e4 {[%clk 0:03:00.9]} 1... d5 {[%clk 0:02:59.5]} 2. exd5 {[%clk 0:02:48.7]}
2... Qxd5 {[%clk 0:03:00.4]} 3. Nf3 {[%clk 0:02:47.7]} 3... Bg4 {[%clk
0:02:55.4]} 4. Be2 {[%clk 0:02:46.1]} 4... Nc6 {[%clk 0:02:53]} 5. h3 {[%clk
0:02:43.7]} 5... Bxf3 {[%clk 0:02:45.6]} 6. Bxf3 {[%clk 0:02:44.6]} 6... Qe6+
{[%clk 0:02:45.7]} 7. Qe2 {[%clk 0:02:44.2]} 7... Nd4 {[%clk 0:02:45]} 8. Qxe6
{[%clk 0:02:39.7]} 8... Nxf3+ {[%clk 0:02:45.2]} 9. gxf3 {[%clk 0:02:40.6]} 9...
fxe6 {[%clk 0:02:45.6]} 10. d4 {[%clk 0:02:34.5]} 10... g6 {[%clk 0:02:45.5]}
11. Bf4 {[%clk 0:02:31.5]} 11... c6 {[%clk 0:02:42.9]} 12. Nd2 {[%clk
0:02:25.5]} 12... Bg7 {[%clk 0:02:34.4]} 13. c3 {[%clk 0:02:19.4]} 13... Nf6
{[%clk 0:02:31.5]} 14. Ne4 {[%clk 0:02:16.4]} 14... Nd7 {[%clk 0:01:28.9]} 15.
Ke2 {[%clk 0:02:11.8]} 15... O-O {[%clk 0:01:27.6]} 16. Bg5 {[%clk 0:02:10]}
16... Rae8 {[%clk 0:01:23.5]} 17. h4 {[%clk 0:01:59.4]} 17... h6 {[%clk
0:01:14.6]} 18. Be3 {[%clk 0:01:57.2]} 18... e5 {[%clk 0:01:13.5]} 19. Rag1
{[%clk 0:01:51.2]} 19... Kh7 {[%clk 0:01:07.1]} 20. Rg2 {[%clk 0:01:46.6]} 20...
exd4 {[%clk 0:01:05.5]} 21. Bxd4 {[%clk 0:01:37.8]} 21... Ne5 {[%clk 0:00:56.3]}
22. Bxe5 {[%clk 0:01:33.9]} 22... Bxe5 {[%clk 0:00:57.2]} 23. Rhg1 {[%clk
0:01:31.8]} 23... Rg8 {[%clk 0:00:54]} 24. a4 {[%clk 0:01:27.4]} 24... Ref8
{[%clk 0:00:52.3]} 25. Rd1 {[%clk 0:01:23.7]} 25... Rd8 {[%clk 0:00:49.9]} 26.
Rdg1 {[%clk 0:01:18.1]} 26... Rd5 {[%clk 0:00:47.9]} 27. Ke3 {[%clk 0:00:58.5]}
27... Bc7 {[%clk 0:00:46.6]} 28. Ke2 {[%clk 0:00:49.2]} 28... b5 {[%clk
0:00:43]} 29. axb5 {[%clk 0:00:46.8]} 29... cxb5 {[%clk 0:00:43.4]} 30. Rd1
{[%clk 0:00:44.4]} 30... Rxd1 {[%clk 0:00:40]} 31. Kxd1 {[%clk 0:00:45.3]} 31...
Rd8+ {[%clk 0:00:40.3]} 32. Ke2 {[%clk 0:00:45.6]} 32... a5 {[%clk 0:00:40.4]}
33. Rg1 {[%clk 0:00:45.5]} 33... Rd5 {[%clk 0:00:38]} 34. Rd1 {[%clk 0:00:37.8]}
34... Rxd1 {[%clk 0:00:29.5]} 35. Kxd1 {[%clk 0:00:37.3]} 35... Kg7 {[%clk
0:00:29.7]} 36. Ke2 {[%clk 0:00:37.2]} 36... Kf7 {[%clk 0:00:28.5]} 37. Kd3
{[%clk 0:00:37.2]} 37... Bb6 {[%clk 0:00:21.5]} 38. c4 {[%clk 0:00:36.4]} 38...
b4 {[%clk 0:00:11.5]} 39. c5 {[%clk 0:00:35.4]} 39... Bc7 {[%clk 0:00:10.9]} 40.
Kc4 {[%clk 0:00:35.2]} 40... Ke6 {[%clk 0:00:11.1]} 41. Kb5 {[%clk 0:00:33.1]}
41... Kd5 {[%clk 0:00:11.1]} 42. b3 {[%clk 0:00:30.7]} 42... Bd8 {[%clk
0:00:07.6]} 43. c6 {[%clk 0:00:24.1]} 43... Bc7 {[%clk 0:00:06.2]} 44. Nd2
{[%clk 0:00:22]} 44... e6 {[%clk 0:00:04]} 45. Nc4 {[%clk 0:00:21.7]} 45... Bd8
{[%clk 0:00:03.8]} 46. Nb6+ {[%clk 0:00:20.5]} 46... Kd6 {[%clk 0:00:02.5]} 47.
Nc4+ {[%clk 0:00:20.4]} 47... Kd5 {[%clk 0:00:02.5]} 48. Ne3+ {[%clk 0:00:17.9]}
48... Kd6 {[%clk 0:00:02.8]} 49. Ng4 {[%clk 0:00:16.5]} 49... h5 {[%clk
0:00:02.3]} 50. Ne3 {[%clk 0:00:15.2]} 50... Bxh4 {[%clk 0:00:02.1]} 51. Kb6
{[%clk 0:00:13.9]} 51... Bd8+ {[%clk 0:00:01.4]} 52. Kb7 {[%clk 0:00:14.2]}
52... h4 {[%clk 0:00:01.7]} 53. Nc4+ {[%clk 0:00:14.2]} 53... Kc5 {[%clk
0:00:01.7]} 54. Ne5 {[%clk 0:00:12.2]} 54... h3 {[%clk 0:00:01.1]} 55. Ng4
{[%clk 0:00:10.5]} 55... a4 {[%clk 0:00:01.5]} 56. bxa4 {[%clk 0:00:09.2]} 56...
b3 {[%clk 0:00:02]} 57. c7 {[%clk 0:00:07.3]} 57... Bxc7 {[%clk 0:00:02.3]} 58.
Kxc7 {[%clk 0:00:08.2]} 58... b2 {[%clk 0:00:02.7]} 59. Kd7 {[%clk 0:00:07.5]}
59... b1=Q {[%clk 0:00:02.7]} 60. Kxe6 {[%clk 0:00:08.4]} 60... Qe1+ {[%clk
0:00:02.8]} 61. Kf6 {[%clk 0:00:08]} 61... h2 {[%clk 0:00:03.1]} 62. Kxg6 {[%clk
0:00:08]} 62... h1=Q {[%clk 0:00:01.9]} 63. Kf5 {[%clk 0:00:08.9]} 63... Qhg1
{[%clk 0:00:02.2]} 64. Kf4 {[%clk 0:00:09.8]} 64... Qa1 {[%clk 0:00:02.4]} 65.
Ne5 {[%clk 0:00:10.7]} 65... Kb4 {[%clk 0:00:02.7]} 66. Nd3+ {[%clk 0:00:11.6]}
66... Kxa4 {[%clk 0:00:03.3]} 67. Ne5 {[%clk 0:00:12.5]} 67... Kb5 {[%clk
0:00:03.7]} 68. Kf5 {[%clk 0:00:13.4]} 68... Kc5 {[%clk 0:00:04.1]} 69. f4
{[%clk 0:00:14.3]} 69... Kd5 {[%clk 0:00:04.6]} 70. Ng4 {[%clk 0:00:15.2]} 70...
Qab1+ {[%clk 0:00:04.6]} 71. Kg5 {[%clk 0:00:16.1]} 71... Qbd1 {[%clk 0:00:04]}
72. f5 {[%clk 0:00:17]} 72... Qdxg4+ {[%clk 0:00:04.2]} 73. Kf6 {[%clk
0:00:17.4]} 73... Qh1 {[%clk 0:00:04.9]} 74. f4 {[%clk 0:00:18.1]} 74... Qh6+
{[%clk 0:00:04.6]} 75. Kf7 {[%clk 0:00:19]} 75... Qgg7+ {[%clk 0:00:04.9]} 76.
Ke8 {[%clk 0:00:19.8]} 76... Qhh8# {[%clk 0:00:05.8]} 0-1

[Event "*** Titled Tuesday Blitz"]
[Site "Chess.com"]
[Date "2020.04.21"]
[Round "7"]
[White "GM_LOADING"]
[Black "abubakrtagelsir"]
[Result "1/2-1/2"]
[WhiteElo "2508"]
[BlackElo "2360"]
[TimeControl "180+1"]
[EndTime "11:23:47 PDT"]
[Termination "Game drawn by agreement"]

1. e4 {[%clk 0:03:00.9]} 1... d6 {[%clk 0:02:59.4]} 2. d4 {[%clk 0:02:59.7]}
2... Nf6 {[%clk 0:02:58.6]} 3. Nc3 {[%clk 0:03:00.1]} 3... g6 {[%clk 0:02:57.8]}
4. Be3 {[%clk 0:02:59.5]} 4... c6 {[%clk 0:02:56.8]} 5. f3 {[%clk 0:02:48.9]}
5... Nbd7 {[%clk 0:02:54.4]} 6. Qd2 {[%clk 0:02:48.9]} 6... b5 {[%clk
0:02:54.3]} 7. g4 {[%clk 0:02:48.8]} 7... Nb6 {[%clk 0:02:53.5]} 8. O-O-O {[%clk
0:02:48.4]} 8... h5 {[%clk 0:02:52.9]} 9. g5 {[%clk 0:02:48.2]} 9... Nfd7 {[%clk
0:02:52.8]} 10. b3 {[%clk 0:02:47.5]} 10... a5 {[%clk 0:02:51.6]} 11. Kb1 {[%clk
0:02:47.5]} 11... a4 {[%clk 0:02:49.9]} 12. f4 {[%clk 0:02:45.9]} 12... Bg7
{[%clk 0:02:49]} 13. f5 {[%clk 0:02:45]} 13... O-O {[%clk 0:02:46.5]} 14. Nh3
{[%clk 0:02:37.9]} 14... b4 {[%clk 0:02:45.2]} 15. Ne2 {[%clk 0:02:37.3]} 15...
axb3 {[%clk 0:02:44.8]} 16. cxb3 {[%clk 0:02:35.9]} 16... c5 {[%clk 0:02:44.3]}
17. Nhf4 {[%clk 0:02:33.9]} 17... cxd4 {[%clk 0:02:38.4]} 18. Bxd4 {[%clk
0:02:23.8]} 18... Ne5 {[%clk 0:02:37.6]} 19. f6 {[%clk 0:01:58.6]} 19... exf6
{[%clk 0:02:36.5]} 20. gxf6 {[%clk 0:01:58.7]} 20... Bxf6 {[%clk 0:02:33.8]} 21.
Bxb6 {[%clk 0:01:53.1]} 21... Qxb6 {[%clk 0:02:32.7]} 22. Nd5 {[%clk 0:01:53.6]}
22... Qd8 {[%clk 0:02:31.7]} 23. Nxf6+ {[%clk 0:01:53.4]} 23... Qxf6 {[%clk
0:02:31.7]} 24. Nf4 {[%clk 0:01:46.6]} 24... Bb7 {[%clk 0:02:24.6]} 25. Bg2
{[%clk 0:01:42.9]} 25... Ng4 {[%clk 0:02:20.8]} 26. h3 {[%clk 0:01:36.2]} 26...
Ne5 {[%clk 0:02:13.1]} 27. Rhf1 {[%clk 0:01:35.6]} 27... Qd8 {[%clk 0:01:19.3]}
28. Qxb4 {[%clk 0:01:28.5]} 28... Ba6 {[%clk 0:00:55.7]} 29. Rf2 {[%clk
0:01:20.8]} 29... Qh4 {[%clk 0:00:53]} 30. Qd4 {[%clk 0:01:15.3]} 30... Rfc8
{[%clk 0:00:29.4]} 31. Bf1 {[%clk 0:01:06.1]} 31... Bxf1 {[%clk 0:00:25.8]} 32.
Rdxf1 {[%clk 0:01:07]} 32... Ra6 {[%clk 0:00:19.7]} 33. Nd3 {[%clk 0:00:53.1]}
33... Rca8 {[%clk 0:00:15]} 34. Nxe5 {[%clk 0:00:29.8]} 34... dxe5 {[%clk
0:00:14.3]} 35. Qxe5 {[%clk 0:00:30.3]} 35... Re6 {[%clk 0:00:08.2]} 36. Qd5
{[%clk 0:00:28.7]} 36... Qxe4+ {[%clk 0:00:07.6]} 37. Qxe4 {[%clk 0:00:28.8]}
37... Rxe4 {[%clk 0:00:08.4]} 38. Rxf7 {[%clk 0:00:28.6]} 38... Re2 {[%clk
0:00:08.6]} 39. a4 {[%clk 0:00:23.7]} 39... Rb8 {[%clk 0:00:08.2]} 40. R7f3
{[%clk 0:00:21.6]} 40... Rd8 {[%clk 0:00:06.8]} 41. R3f2 {[%clk 0:00:16.8]}
41... Re3 {[%clk 0:00:05.4]} 42. Rf3 {[%clk 0:00:17]} 42... Rdd3 {[%clk
0:00:04.9]} 43. Rxe3 {[%clk 0:00:16.7]} 43... Rxe3 {[%clk 0:00:05]} 44. Kb2
{[%clk 0:00:17]} 44... Rxh3 {[%clk 0:00:04.8]} 45. a5 {[%clk 0:00:17.4]} 45...
Re3 {[%clk 0:00:04]} 46. a6 {[%clk 0:00:16.9]} 46... Re7 {[%clk 0:00:01.9]} 47.
b4 {[%clk 0:00:16.3]} 47... h4 {[%clk 0:00:02.8]} 48. b5 {[%clk 0:00:16.2]}
48... Re5 {[%clk 0:00:02.2]} 49. b6 {[%clk 0:00:09.4]} 49... Rb5+ {[%clk
0:00:03.1]} 50. Kc3 {[%clk 0:00:09.4]} 50... Rxb6 {[%clk 0:00:04]} 51. Ra1
{[%clk 0:00:10]} 51... Rb8 {[%clk 0:00:04.2]} 52. a7 {[%clk 0:00:10.2]} 52...
Ra8 {[%clk 0:00:04.7]} 53. Kd3 {[%clk 0:00:10.6]} 53... Kg7 {[%clk 0:00:05.2]}
54. Ke4 {[%clk 0:00:11.1]} 54... Kh6 {[%clk 0:00:05.9]} 55. Kf4 {[%clk
0:00:11.6]} 55... Kh5 {[%clk 0:00:02.9]} 56. Ra5+ {[%clk 0:00:11.4]} 56... Kh6
{[%clk 0:00:01.8]} 57. Kg4 {[%clk 0:00:12]} 57... Kg7 {[%clk 0:00:02.1]} 58.
Kxh4 {[%clk 0:00:12.3]} 58... Kf6 {[%clk 0:00:03]} 59. Kg4 {[%clk 0:00:12.4]}
59... Ke6 {[%clk 0:00:03.9]} 60. Kg5 {[%clk 0:00:11.8]} 60... Kd6 {[%clk
0:00:04.8]} 61. Kxg6 {[%clk 0:00:12.1]} 61... Kc6 {[%clk 0:00:05.7]} 62. Kf6
{[%clk 0:00:12.6]} 62... Kb6 {[%clk 0:00:06.6]} 63. Ra2 {[%clk 0:00:12.8]} 63...
Rxa7 {[%clk 0:00:07.5]} 64. Rb2+ {[%clk 0:00:13.1]} 64... Kc6 {[%clk 0:00:07.2]}
65. Ke6 {[%clk 0:00:12.4]} 65... Rh7 {[%clk 0:00:06.8]} 66. Rc2+ {[%clk
0:00:12.5]} 66... Kb6 {[%clk 0:00:07]} 67. Rb2+ {[%clk 0:00:07.9]} 1/2-1/2

[Event "*** Titled Tuesday Blitz"]
[Site "Chess.com"]
[Date "2020.04.21"]
[Round "7"]
[White "Carnivoras"]
[Black "Shaman91"]
[Result "1-0"]
[WhiteElo "2623"]
[BlackElo "2828"]
[TimeControl "180+1"]
[EndTime "11:23:49 PDT"]
[Termination "Carnivoras won by resignation"]

1. d4 {[%clk 0:03:00.9]} 1... Nf6 {[%clk 0:02:56.5]} 2. Nf3 {[%clk 0:02:59.9]}
2... d6 {[%clk 0:02:54.4]} 3. g3 {[%clk 0:02:58.3]} 3... g6 {[%clk 0:02:53.2]}
4. Bg2 {[%clk 0:02:58.8]} 4... Bg7 {[%clk 0:02:53.9]} 5. O-O {[%clk 0:02:59.4]}
5... O-O {[%clk 0:02:54.1]} 6. Nc3 {[%clk 0:02:56.8]} 6... Nbd7 {[%clk
0:02:53.2]} 7. e4 {[%clk 0:02:54.5]} 7... e5 {[%clk 0:02:53.7]} 8. dxe5 {[%clk
0:02:53.9]} 8... dxe5 {[%clk 0:02:50.2]} 9. Qe2 {[%clk 0:02:52.7]} 9... c6
{[%clk 0:02:49.3]} 10. Rd1 {[%clk 0:02:52.2]} 10... Qc7 {[%clk 0:02:49.3]} 11.
Be3 {[%clk 0:02:51.7]} 11... Re8 {[%clk 0:02:46]} 12. h3 {[%clk 0:02:50.7]}
12... a5 {[%clk 0:02:44]} 13. a4 {[%clk 0:02:42.2]} 13... Bf8 {[%clk 0:02:43]}
14. Nd2 {[%clk 0:02:39.2]} 14... b6 {[%clk 0:02:38.2]} 15. Qe1 {[%clk
0:02:21.7]} 15... Bc5 {[%clk 0:02:35.7]} 16. Bf1 {[%clk 0:02:18.7]} 16... Bxe3
{[%clk 0:02:33]} 17. Qxe3 {[%clk 0:02:19.6]} 17... Nc5 {[%clk 0:02:31.9]} 18.
Nb3 {[%clk 0:02:14]} 18... Nxb3 {[%clk 0:02:24.4]} 19. cxb3 {[%clk 0:02:14.9]}
19... Be6 {[%clk 0:02:23.8]} 20. Rac1 {[%clk 0:02:08.7]} 20... Qb7 {[%clk
0:02:09.5]} 21. Bc4 {[%clk 0:01:42.9]} 21... Bxc4 {[%clk 0:02:07.5]} 22. bxc4
{[%clk 0:01:42.5]} 22... Nd7 {[%clk 0:02:07.8]} 23. Rd6 {[%clk 0:01:33]} 23...
Nc5 {[%clk 0:02:08.1]} 24. Rcd1 {[%clk 0:01:31.1]} 24... Qc7 {[%clk 0:01:59.5]}
25. Qg5 {[%clk 0:01:26.3]} 25... Nb3 {[%clk 0:01:52.1]} 26. Rd7 {[%clk
0:01:14.9]} 26... Qc8 {[%clk 0:01:46.1]} 27. Qf6 {[%clk 0:01:13]} 27... Rf8
{[%clk 0:01:44]} 28. Qxe5 {[%clk 0:01:13]} 28... Nc5 {[%clk 0:01:40.4]} 29. R7d6
{[%clk 0:00:55.7]} 29... Re8 {[%clk 0:00:55.8]} 30. Qf4 {[%clk 0:00:46.6]} 30...
Ra7 {[%clk 0:00:37.5]} 31. Kg2 {[%clk 0:00:42.3]} 31... Rae7 {[%clk 0:00:36]}
32. Qf6 {[%clk 0:00:25.9]} 32... Re6 {[%clk 0:00:26.5]} 33. Rxe6 {[%clk
0:00:24.1]} 33... Qxe6 {[%clk 0:00:24.3]} 34. Qxe6 {[%clk 0:00:22.7]} 34... Rxe6
{[%clk 0:00:25.2]} 35. f3 {[%clk 0:00:23.1]} 35... Re8 {[%clk 0:00:21.5]} 36.
Rd6 {[%clk 0:00:21.7]} 36... Rc8 {[%clk 0:00:21.5]} 37. Kf2 {[%clk 0:00:21.3]}
37... Kf8 {[%clk 0:00:22]} 38. Ke3 {[%clk 0:00:20.9]} 38... Ke7 {[%clk 0:00:21]}
39. e5 {[%clk 0:00:20.8]} 39... Rc7 {[%clk 0:00:20.7]} 40. f4 {[%clk 0:00:20.2]}
40... Nd7 {[%clk 0:00:20.1]} 41. Ne4 {[%clk 0:00:19.6]} 41... Rc8 {[%clk
0:00:19.6]} 42. Ng5 {[%clk 0:00:19.3]} 42... Nc5 {[%clk 0:00:16.9]} 43. Nxh7
{[%clk 0:00:18.4]} 43... Nxa4 {[%clk 0:00:17.1]} 44. Rd2 {[%clk 0:00:15.6]}
44... Nc5 {[%clk 0:00:17.1]} 45. Ng5 {[%clk 0:00:15.2]} 45... b5 {[%clk
0:00:13.4]} 46. cxb5 {[%clk 0:00:14.5]} 46... cxb5 {[%clk 0:00:14.3]} 47. Rc2
{[%clk 0:00:15]} 47... Rc7 {[%clk 0:00:12.3]} 48. Ne4 {[%clk 0:00:13.8]} 48...
Na6 {[%clk 0:00:12.5]} 49. Rxc7+ {[%clk 0:00:13.3]} 49... Nxc7 {[%clk
0:00:13.4]} 50. Nd6 {[%clk 0:00:13.6]} 50... Ke6 {[%clk 0:00:13.1]} 51. Nb7
{[%clk 0:00:12.9]} 51... a4 {[%clk 0:00:12.1]} 52. Nd8+ {[%clk 0:00:13.2]} 52...
Ke7 {[%clk 0:00:12.1]} 53. Nc6+ {[%clk 0:00:13.8]} 53... Ke6 {[%clk 0:00:12.7]}
54. Ke4 {[%clk 0:00:14]} 54... Kd7 {[%clk 0:00:12.3]} 55. Nb4 {[%clk 0:00:13.6]}
55... Ne6 {[%clk 0:00:12.3]} 56. g4 {[%clk 0:00:12.9]} 56... Nc5+ {[%clk
0:00:10.8]} 57. Kd5 {[%clk 0:00:13.2]} 57... Nb3 {[%clk 0:00:10.9]} 58. f5
{[%clk 0:00:13.3]} 58... gxf5 {[%clk 0:00:10.2]} 59. gxf5 {[%clk 0:00:14.2]}
59... Ke7 {[%clk 0:00:11]} 60. Nc6+ {[%clk 0:00:13.6]} 60... Kf8 {[%clk
0:00:11.4]} 61. h4 {[%clk 0:00:13.7]} 61... Nd2 {[%clk 0:00:10.8]} 62. Kc5
{[%clk 0:00:12.8]} 62... Nc4 {[%clk 0:00:10.3]} 63. Kxb5 {[%clk 0:00:12]} 63...
Nxb2 {[%clk 0:00:10.7]} 64. Kb4 {[%clk 0:00:12.5]} 64... Ke8 {[%clk 0:00:09.1]}
65. Ka3 {[%clk 0:00:12.5]} 65... Nc4+ {[%clk 0:00:08.5]} 66. Kxa4 {[%clk
0:00:11.9]} 66... Kd7 {[%clk 0:00:09]} 67. Kb5 {[%clk 0:00:11.5]} 67... Na3+
{[%clk 0:00:09.1]} 68. Kc5 {[%clk 0:00:11.7]} 68... Nc2 {[%clk 0:00:10]} 69. Nd4
{[%clk 0:00:10.8]} 69... Ne3 {[%clk 0:00:09.6]} 70. h5 {[%clk 0:00:11.1]} 70...
Ng4 {[%clk 0:00:07.8]} 71. Kd5 {[%clk 0:00:11.7]} 71... Ke7 {[%clk 0:00:07.8]}
72. Ke4 {[%clk 0:00:12]} 72... Kf8 {[%clk 0:00:07.7]} 73. Kf4 {[%clk 0:00:12.3]}
73... Nf2 {[%clk 0:00:08.2]} 74. Nf3 {[%clk 0:00:11]} 74... Kg7 {[%clk
0:00:07.4]} 75. Kg5 {[%clk 0:00:10.9]} 75... Nd3 {[%clk 0:00:07.4]} 76. f6+
{[%clk 0:00:10.4]} 76... Kh7 {[%clk 0:00:07.9]} 77. Kf5 {[%clk 0:00:09.8]} 77...
Nc5 {[%clk 0:00:05.3]} 78. Ng5+ {[%clk 0:00:10.1]} 78... Kg8 {[%clk 0:00:05.9]}
79. h6 {[%clk 0:00:10.4]} 79... Nd7 {[%clk 0:00:04.4]} 80. h7+ {[%clk
0:00:10.2]} 1-0